[Event "Early-Titled-Tuesday-Blitz-January-30-2024"]
[Site "Chess.com"]
[Date "2024.01.30"]
[Round "1"]
[White "leschebaza"]
[Black "djano"]
[Result "0-1"]
[WhiteElo "2388"]
[BlackElo "2711"]
[TimeControl "180+1"]
[EndTime "8:05:51 PST"]
[Termination "djano won by checkmate"]

1. Nf3 {[%clk 0:03:00.9]} 1... c5 {[%clk 0:03:00]} 2. c4 {[%clk 0:03:00.1]} 2...
g6 {[%clk 0:03:00.2]} 3. g3 {[%clk 0:02:59]} 3... Bg7 {[%clk 0:03:00.4]} 4. Bg2
{[%clk 0:02:59.7]} 4... Nc6 {[%clk 0:03:00.9]} 5. O-O {[%clk 0:02:58.9]} 5... d6
{[%clk 0:03:00.8]} 6. d3 {[%clk 0:02:59]} 6... e6 {[%clk 0:02:59.1]} 7. Nc3
{[%clk 0:02:59.6]} 7... Nge7 {[%clk 0:02:59.3]} 8. Rb1 {[%clk 0:02:58.6]} 8...
O-O {[%clk 0:02:58.9]} 9. a3 {[%clk 0:02:59.1]} 9... a5 {[%clk 0:02:55.3]} 10.
e4 {[%clk 0:02:41.4]} 10... h6 {[%clk 0:02:43.8]} 11. Re1 {[%clk 0:02:40.3]}
11... Kh7 {[%clk 0:02:42.8]} 12. Be3 {[%clk 0:02:37.2]} 12... e5 {[%clk
0:02:42.5]} 13. Nd5 {[%clk 0:02:32]} 13... a4 {[%clk 0:02:33.2]} 14. b3 {[%clk
0:02:16.6]} 14... axb3 {[%clk 0:02:32]} 15. Rxb3 {[%clk 0:02:17.5]} 15... Nxd5
{[%clk 0:02:25.3]} 16. cxd5 {[%clk 0:02:16.6]} 16... Nd4 {[%clk 0:02:25.7]} 17.
Bxd4 {[%clk 0:02:15.9]} 17... cxd4 {[%clk 0:02:23.7]} 18. Nd2 {[%clk 0:02:15.8]}
18... f5 {[%clk 0:02:04.6]} 19. Nc4 {[%clk 0:02:15.2]} 19... f4 {[%clk
0:02:04.8]} 20. Bf3 {[%clk 0:02:11.2]} 20... fxg3 {[%clk 0:01:52.8]} 21. hxg3
{[%clk 0:02:07.8]} 21... Qf6 {[%clk 0:01:52.4]} 22. Kg2 {[%clk 0:02:07.8]} 22...
g5 {[%clk 0:01:21.6]} 23. Rf1 {[%clk 0:01:58.9]} 23... Ra7 {[%clk 0:01:12.7]}
24. Rb6 {[%clk 0:01:57.9]} 24... Ra6 {[%clk 0:01:10.6]} 25. Bg4 {[%clk 0:01:45]}
25... Bxg4 {[%clk 0:00:54.1]} 26. Qxg4 {[%clk 0:01:45.9]} 26... Rxb6 {[%clk
0:00:54.2]} 27. Nxb6 {[%clk 0:01:46.8]} 27... Qd8 {[%clk 0:00:54.5]} 28. Nc4
{[%clk 0:01:46.6]} 28... b5 {[%clk 0:00:54.2]} 29. Nd2 {[%clk 0:01:39.2]} 29...
Qa5 {[%clk 0:00:54.7]} 30. Nf3 {[%clk 0:01:39]} 30... Qxa3 {[%clk 0:00:50.7]}
31. Rh1 {[%clk 0:01:37.4]} 31... Kg8 {[%clk 0:00:47]} 32. Qe6+ {[%clk
0:01:37.2]} 32... Rf7 {[%clk 0:00:45.6]} 33. Qg6 {[%clk 0:01:30.2]} 33... Qxd3
{[%clk 0:00:38.6]} 34. Nh2 {[%clk 0:01:20.7]} 34... Qe2 {[%clk 0:00:35.8]} 35.
Ra1 {[%clk 0:01:15.5]} 35... Rxf2+ {[%clk 0:00:33.8]} 36. Kg1 {[%clk 0:01:15.3]}
36... Rg2+ {[%clk 0:00:33.7]} 37. Kh1 {[%clk 0:01:15.8]} 37... Rxh2+ {[%clk
0:00:34.1]} 38. Kg1 {[%clk 0:01:16.7]} 38... Qg2# {[%clk 0:00:34.4]} 0-1

[Event "Early-Titled-Tuesday-Blitz-January-30-2024"]
[Site "Chess.com"]
[Date "2024.01.30"]
[Round "1"]
[White "OneTrickPony_82"]
[Black "Jospem"]
[Result "0-1"]
[WhiteElo "2535"]
[BlackElo "3047"]
[TimeControl "180+1"]
[EndTime "8:05:52 PST"]
[Termination "Jospem won by resignation"]

1. d4 {[%clk 0:03:00.9]} 1... Nf6 {[%clk 0:02:59.5]} 2. c4 {[%clk 0:02:59.5]}
2... e6 {[%clk 0:03:00]} 3. Nf3 {[%clk 0:02:59.8]} 3... Bb4+ {[%clk 0:03:00.1]}
4. Bd2 {[%clk 0:02:59.6]} 4... c5 {[%clk 0:03:00.6]} 5. Bxb4 {[%clk 0:02:57.3]}
5... cxb4 {[%clk 0:03:01.5]} 6. e3 {[%clk 0:02:56.6]} 6... b6 {[%clk 0:03:01.5]}
7. Bd3 {[%clk 0:02:55.8]} 7... Bb7 {[%clk 0:03:01.8]} 8. O-O {[%clk 0:02:53.6]}
8... a5 {[%clk 0:03:01.7]} 9. Nbd2 {[%clk 0:02:49.5]} 9... O-O {[%clk
0:03:01.4]} 10. e4 {[%clk 0:02:47.9]} 10... d6 {[%clk 0:03:01.7]} 11. Re1 {[%clk
0:02:47.6]} 11... h6 {[%clk 0:03:01.4]} 12. Nf1 {[%clk 0:02:46.1]} 12... Nc6
{[%clk 0:03:01.1]} 13. Qd2 {[%clk 0:02:31.3]} 13... e5 {[%clk 0:03:00.3]} 14.
Ne3 {[%clk 0:02:29.6]} 14... Re8 {[%clk 0:02:49.4]} 15. d5 {[%clk 0:02:08.9]}
15... Ne7 {[%clk 0:02:48.1]} 16. Nh4 {[%clk 0:02:05]} 16... Bc8 {[%clk
0:02:42.9]} 17. h3 {[%clk 0:01:49.2]} 17... Qc7 {[%clk 0:02:35]} 18. g4 {[%clk
0:01:39.8]} 18... Ng6 {[%clk 0:02:31.3]} 19. Nxg6 {[%clk 0:01:38.9]} 19... fxg6
{[%clk 0:02:32.2]} 20. Kg2 {[%clk 0:01:26.8]} 20... Rf8 {[%clk 0:02:31.5]} 21.
Rf1 {[%clk 0:01:24.9]} 21... Nh7 {[%clk 0:02:28.6]} 22. h4 {[%clk 0:01:19.1]}
22... Qe7 {[%clk 0:02:24.8]} 23. Rh1 {[%clk 0:01:10.3]} 23... Rf4 {[%clk
0:02:24.4]} 24. f3 {[%clk 0:01:06]} 24... Bd7 {[%clk 0:02:23.6]} 25. a3 {[%clk
0:00:55]} 25... Raf8 {[%clk 0:02:22.6]} 26. Be2 {[%clk 0:00:54.3]} 26... h5
{[%clk 0:02:05.8]} 27. g5 {[%clk 0:00:38.8]} 27... Rxh4 {[%clk 0:01:54.2]} 28.
Nf5 {[%clk 0:00:26.5]} 28... Bxf5 {[%clk 0:01:26.1]} 29. Rxh4 {[%clk 0:00:25.6]}
29... Bc8 {[%clk 0:01:26.7]} 30. f4 {[%clk 0:00:19.5]} 30... exf4 {[%clk
0:01:24.8]} 31. Rxf4 {[%clk 0:00:19.4]} 31... Qxg5+ {[%clk 0:01:23.9]} 0-1

[Event "Early-Titled-Tuesday-Blitz-January-30-2024"]
[Site "Chess.com"]
[Date "2024.01.30"]
[Round "1"]
[White "eagleclaw07"]
[Black "BJthechessgod"]
[Result "1-0"]
[WhiteElo "2737"]
[BlackElo "2402"]
[TimeControl "180+1"]
[EndTime "8:05:58 PST"]
[Termination "eagleclaw07 won by checkmate"]

1. d4 {[%clk 0:03:00.9]} 1... d5 {[%clk 0:02:59.5]} 2. c4 {[%clk 0:02:59.4]}
2... dxc4 {[%clk 0:03:00.2]} 3. Nf3 {[%clk 0:02:59.9]} 3... Nf6 {[%clk
0:03:00.5]} 4. e3 {[%clk 0:03:00.5]} 4... e6 {[%clk 0:03:01]} 5. Bxc4 {[%clk
0:03:01.1]} 5... c5 {[%clk 0:03:01.8]} 6. O-O {[%clk 0:03:01.7]} 6... a6 {[%clk
0:03:02.6]} 7. b3 {[%clk 0:03:01.9]} 7... Nbd7 {[%clk 0:02:59.9]} 8. Bb2 {[%clk
0:03:01.9]} 8... Be7 {[%clk 0:03:00.3]} 9. Nbd2 {[%clk 0:03:01.7]} 9... O-O
{[%clk 0:03:00.9]} 10. Rc1 {[%clk 0:03:01.1]} 10... b6 {[%clk 0:03:00.3]} 11.
Qe2 {[%clk 0:02:59.1]} 11... Bb7 {[%clk 0:03:00.9]} 12. Rfd1 {[%clk 0:02:59.3]}
12... Ra7 {[%clk 0:02:46]} 13. a4 {[%clk 0:02:58.7]} 13... Qa8 {[%clk
0:02:46.1]} 14. h3 {[%clk 0:02:57.6]} 14... Rd8 {[%clk 0:02:41.4]} 15. Qf1
{[%clk 0:02:55.3]} 15... Ne4 {[%clk 0:02:35.9]} 16. Nxe4 {[%clk 0:02:54.3]}
16... Bxe4 {[%clk 0:02:36.8]} 17. Nd2 {[%clk 0:02:46.7]} 17... Bc6 {[%clk
0:02:28.5]} 18. Bd3 {[%clk 0:02:45]} 18... Bf6 {[%clk 0:02:13.7]} 19. Nc4 {[%clk
0:02:40.9]} 19... cxd4 {[%clk 0:02:10.5]} 20. Bxd4 {[%clk 0:02:39.1]} 20... Bxd4
{[%clk 0:02:10.5]} 21. exd4 {[%clk 0:02:40]} 21... Bd5 {[%clk 0:02:00.8]} 22.
Bb1 {[%clk 0:02:37.6]} 22... b5 {[%clk 0:01:52.8]} 23. axb5 {[%clk 0:02:27.8]}
23... axb5 {[%clk 0:01:53.7]} 24. Ne5 {[%clk 0:02:06.8]} 24... Bxb3 {[%clk
0:01:17]} 25. Bxh7+ {[%clk 0:01:42.7]} 25... Kf8 {[%clk 0:00:41.2]} 26. Qxb5
{[%clk 0:01:13.2]} 26... Bxd1 {[%clk 0:00:38.1]} 27. Qb4+ {[%clk 0:01:13.2]}
27... Ke8 {[%clk 0:00:37.5]} 28. Nc6 {[%clk 0:01:13.1]} 28... Nf6 {[%clk
0:00:26.1]} 29. Bd3 {[%clk 0:01:13.2]} 29... Rb7 {[%clk 0:00:20.7]} 30. Bb5
{[%clk 0:01:12.8]} 30... Rxb5 {[%clk 0:00:13.8]} 31. Qe7# {[%clk 0:01:12.4]} 1-0

[Event "Early-Titled-Tuesday-Blitz-January-30-2024"]
[Site "Chess.com"]
[Date "2024.01.30"]
[Round "1"]
[White "JACK_BAU3R"]
[Black "RandomNoob04"]
[Result "0-1"]
[WhiteElo "2064"]
[BlackElo "2567"]
[TimeControl "180+1"]
[EndTime "8:06:16 PST"]
[Termination "RandomNoob04 won by resignation"]

1. d4 {[%clk 0:01:34.9]} 1... Nf6 {[%clk 0:02:58.6]} 2. c3 {[%clk 0:01:35.8]}
2... d5 {[%clk 0:02:56.9]} 3. Bf4 {[%clk 0:01:36.3]} 3... c5 {[%clk 0:02:56.9]}
4. e3 {[%clk 0:01:37]} 4... Nc6 {[%clk 0:02:57.1]} 5. Bd3 {[%clk 0:01:36.8]}
5... Qb6 {[%clk 0:02:54.9]} 6. Qc1 {[%clk 0:01:36.9]} 6... Bg4 {[%clk
0:02:51.9]} 7. Nd2 {[%clk 0:01:37.1]} 7... e6 {[%clk 0:02:52.1]} 8. Ngf3 {[%clk
0:01:37.1]} 8... Rc8 {[%clk 0:02:50.3]} 9. Rb1 {[%clk 0:01:37.2]} 9... Be7
{[%clk 0:02:47.9]} 10. h3 {[%clk 0:01:37.3]} 10... Bh5 {[%clk 0:02:47.7]} 11.
O-O {[%clk 0:01:37.4]} 11... O-O {[%clk 0:02:47.5]} 12. Re1 {[%clk 0:01:37.6]}
12... Bg6 {[%clk 0:02:43.8]} 13. Bxg6 {[%clk 0:01:36.7]} 13... hxg6 {[%clk
0:02:44.7]} 14. Qd1 {[%clk 0:01:37.2]} 14... Qa6 {[%clk 0:02:40.5]} 15. a3
{[%clk 0:01:37.4]} 15... b5 {[%clk 0:02:40.6]} 16. Qe2 {[%clk 0:01:37.1]} 16...
Qb6 {[%clk 0:02:35.5]} 17. Ne5 {[%clk 0:01:36.4]} 17... Nxe5 {[%clk 0:02:34.9]}
18. Bxe5 {[%clk 0:01:37.3]} 18... Nd7 {[%clk 0:02:35.4]} 19. Bg3 {[%clk
0:01:37.2]} 19... a5 {[%clk 0:02:35.1]} 20. dxc5 {[%clk 0:01:30.7]} 20... Bxc5
{[%clk 0:02:31.7]} 21. e4 {[%clk 0:01:28.1]} 21... Nf6 {[%clk 0:02:27]} 22. Bh4
{[%clk 0:01:14.3]} 22... Nxe4 {[%clk 0:02:16.5]} 23. Nxe4 {[%clk 0:01:14.1]}
23... dxe4 {[%clk 0:02:17.4]} 24. Qxe4 {[%clk 0:01:14.6]} 24... b4 {[%clk
0:02:06.4]} 25. axb4 {[%clk 0:01:09.6]} 25... axb4 {[%clk 0:02:07.3]} 26. cxb4
{[%clk 0:01:09.9]} 26... Bxb4 {[%clk 0:02:07.2]} 27. Red1 {[%clk 0:01:08.6]}
27... Bc5 {[%clk 0:02:02.8]} 28. Bg3 {[%clk 0:01:07.2]} 28... Rfd8 {[%clk
0:01:58.8]} 29. Rxd8+ {[%clk 0:01:04.4]} 29... Rxd8 {[%clk 0:01:59.7]} 30. b4
{[%clk 0:01:04.7]} 30... Bd6 {[%clk 0:01:49.7]} 31. Bxd6 {[%clk 0:01:00.5]}
31... Rxd6 {[%clk 0:01:50.6]} 32. b5 {[%clk 0:01:00.2]} 32... Rd5 {[%clk
0:01:44.8]} 33. Qc4 {[%clk 0:00:58.6]} 33... Rc5 {[%clk 0:01:44.2]} 34. Qd3
{[%clk 0:00:56.8]} 34... Rf5 {[%clk 0:01:36.8]} 35. Rb2 {[%clk 0:00:53]} 35...
Rd5 {[%clk 0:01:35.5]} 36. Qc2 {[%clk 0:00:50.3]} 36... Rxb5 {[%clk 0:01:30.6]}
37. Qc8+ {[%clk 0:00:40]} 37... Kh7 {[%clk 0:01:30.1]} 38. Rxb5 {[%clk
0:00:40.9]} 38... Qxb5 {[%clk 0:01:30.6]} 39. Qf8 {[%clk 0:00:41.8]} 39... Qb1+
{[%clk 0:01:28.3]} 40. Kh2 {[%clk 0:00:42]} 40... Qf5 {[%clk 0:01:29.2]} 41. f3
{[%clk 0:00:42.3]} 41... e5 {[%clk 0:01:24.7]} 42. Qb4 {[%clk 0:00:39.7]} 42...
Qf4+ {[%clk 0:01:24.1]} 43. Qxf4 {[%clk 0:00:39.3]} 43... exf4 {[%clk 0:01:25]}
44. h4 {[%clk 0:00:39.9]} 44... Kh6 {[%clk 0:01:25.1]} 45. Kh3 {[%clk
0:00:40.1]} 45... Kh5 {[%clk 0:01:25.3]} 46. g4+ {[%clk 0:00:35.7]} 46... fxg3
{[%clk 0:01:26.2]} 47. Kxg3 {[%clk 0:00:36]} 47... g5 {[%clk 0:01:26.6]} 48.
hxg5 {[%clk 0:00:34.6]} 48... Kxg5 {[%clk 0:01:27.5]} 0-1

[Event "Early-Titled-Tuesday-Blitz-January-30-2024"]
[Site "Chess.com"]
[Date "2024.01.30"]
[Round "1"]
[White "Oleksandr_Bortnyk"]
[Black "Chessdreamer2020"]
[Result "1-0"]
[WhiteElo "3106"]
[BlackElo "2543"]
[TimeControl "180+1"]
[EndTime "8:06:17 PST"]
[Termination "Oleksandr_Bortnyk won by resignation"]

1. e4 {[%clk 0:03:00.9]} 1... c6 {[%clk 0:02:59.6]} 2. d4 {[%clk 0:02:59.2]}
2... d5 {[%clk 0:02:59.8]} 3. Nc3 {[%clk 0:03:00.1]} 3... dxe4 {[%clk
0:02:59.7]} 4. Nxe4 {[%clk 0:03:01]} 4... Nf6 {[%clk 0:03:00.1]} 5. Nxf6+ {[%clk
0:03:00.9]} 5... exf6 {[%clk 0:03:01]} 6. c3 {[%clk 0:03:01.4]} 6... g6 {[%clk
0:03:01.4]} 7. h4 {[%clk 0:02:59.4]} 7... h5 {[%clk 0:03:01.1]} 8. Bc4 {[%clk
0:02:59.5]} 8... Bg7 {[%clk 0:03:01.1]} 9. Qc2 {[%clk 0:02:59.7]} 9... Qe7+
{[%clk 0:03:00.8]} 10. Be3 {[%clk 0:02:58.8]} 10... Be6 {[%clk 0:03:00.8]} 11.
Bb3 {[%clk 0:02:52.7]} 11... Na6 {[%clk 0:02:57.4]} 12. Ne2 {[%clk 0:02:52.1]}
12... Nc7 {[%clk 0:02:56.8]} 13. Nf4 {[%clk 0:02:50.6]} 13... Bf5 {[%clk
0:02:57.2]} 14. Qe2 {[%clk 0:02:45.8]} 14... Ne6 {[%clk 0:02:56.2]} 15. Nd3
{[%clk 0:02:13.3]} 15... Bh6 {[%clk 0:02:48.1]} 16. Bxe6 {[%clk 0:02:08.6]}
16... Qxe6 {[%clk 0:02:24.3]} 17. Bxh6 {[%clk 0:02:08.1]} 17... Qxe2+ {[%clk
0:02:07.5]} 18. Kxe2 {[%clk 0:02:08.1]} 18... Bxd3+ {[%clk 0:02:00.1]} 19. Kxd3
{[%clk 0:02:09]} 19... Rxh6 {[%clk 0:02:00.4]} 20. Rae1+ {[%clk 0:02:05.5]}
20... Kd7 {[%clk 0:02:00.5]} 21. Re3 {[%clk 0:02:04.8]} 21... Re8 {[%clk
0:01:59.9]} 22. Rxe8 {[%clk 0:01:38.6]} 22... Kxe8 {[%clk 0:02:00.8]} 23. a4
{[%clk 0:01:39.5]} 23... Kd7 {[%clk 0:02:00]} 24. a5 {[%clk 0:01:39.9]} 24...
Rh8 {[%clk 0:02:00]} 25. Re1 {[%clk 0:01:39.4]} 25... Rg8 {[%clk 0:01:56.5]} 26.
g3 {[%clk 0:01:37.6]} 26... g5 {[%clk 0:01:54.3]} 27. Re4 {[%clk 0:01:35.3]}
27... Rg6 {[%clk 0:01:43.6]} 28. Kc4 {[%clk 0:01:30.1]} 28... b6 {[%clk
0:01:25.2]} 29. b4 {[%clk 0:01:15.6]} 29... Rg8 {[%clk 0:01:13]} 30. a6 {[%clk
0:01:10.5]} 30... Kd6 {[%clk 0:01:12]} 31. b5 {[%clk 0:01:08.5]} 31... cxb5+
{[%clk 0:00:57.1]} 32. Kxb5 {[%clk 0:01:09.4]} 32... Kd5 {[%clk 0:00:57.4]} 33.
Re7 {[%clk 0:01:06.3]} 33... gxh4 {[%clk 0:00:57.8]} 34. gxh4 {[%clk 0:01:05.3]}
34... Rg1 {[%clk 0:00:48]} 35. Rd7+ {[%clk 0:01:03.3]} 35... Ke6 {[%clk
0:00:47.4]} 36. Rxa7 {[%clk 0:01:03.5]} 36... Rb1+ {[%clk 0:00:41.8]} 37. Kc6
{[%clk 0:01:03.5]} 37... f5 {[%clk 0:00:40.9]} 38. d5+ {[%clk 0:01:02]} 38...
Ke5 {[%clk 0:00:38.7]} 39. Rxf7 {[%clk 0:00:58.6]} 1-0

[Event "Early-Titled-Tuesday-Blitz-January-30-2024"]
[Site "Chess.com"]
[Date "2024.01.30"]
[Round "1"]
[White "giovannibrandao7"]
[Black "JoachimBN"]
[Result "0-1"]
[WhiteElo "2155"]
[BlackElo "2578"]
[TimeControl "180+1"]
[EndTime "8:06:17 PST"]
[Termination "JoachimBN won by resignation"]

1. e4 {[%clk 0:03:00.9]} 1... c5 {[%clk 0:02:47.6]} 2. Nf3 {[%clk 0:03:01.2]}
2... g6 {[%clk 0:02:46.6]} 3. d4 {[%clk 0:03:00.6]} 3... cxd4 {[%clk 0:02:47.5]}
4. Nxd4 {[%clk 0:03:00.9]} 4... Bg7 {[%clk 0:02:43.1]} 5. Nc3 {[%clk 0:03:01]}
5... Nc6 {[%clk 0:02:41]} 6. Be3 {[%clk 0:03:00.6]} 6... Nf6 {[%clk 0:02:41]} 7.
Be2 {[%clk 0:03:01]} 7... O-O {[%clk 0:02:40.8]} 8. O-O {[%clk 0:03:01.5]} 8...
d5 {[%clk 0:02:40.9]} 9. exd5 {[%clk 0:02:58.6]} 9... Nxd5 {[%clk 0:02:41.8]}
10. Nxd5 {[%clk 0:02:58.2]} 10... Qxd5 {[%clk 0:02:40.4]} 11. Bf3 {[%clk
0:02:58.6]} 11... Qa5 {[%clk 0:02:13.6]} 12. Nxc6 {[%clk 0:02:49.3]} 12... bxc6
{[%clk 0:02:14.1]} 13. c3 {[%clk 0:02:31]} 13... Rd8 {[%clk 0:02:09.7]} 14. Qe2
{[%clk 0:02:29]} 14... Ba6 {[%clk 0:01:55.7]} 15. c4 {[%clk 0:02:04.2]} 15...
Rab8 {[%clk 0:01:54.4]} 16. Bxa7 {[%clk 0:01:34.8]} 16... Rb7 {[%clk 0:01:37.9]}
17. Be3 {[%clk 0:01:14.2]} 17... Rxb2 {[%clk 0:01:36.4]} 18. Qe1 {[%clk
0:01:13.3]} 18... Bc3 {[%clk 0:01:22.7]} 19. Qc1 {[%clk 0:01:09.8]} 19... Bxc4
{[%clk 0:01:22.1]} 20. Rd1 {[%clk 0:00:50.5]} 20... Bd5 {[%clk 0:01:09.3]} 21.
Bxd5 {[%clk 0:00:41.1]} 21... cxd5 {[%clk 0:01:06.9]} 22. Bd4 {[%clk 0:00:35.8]}
22... Bxd4 {[%clk 0:01:03.8]} 23. Rxd4 {[%clk 0:00:36.7]} 23... Rxa2 {[%clk
0:01:00.8]} 24. Rxa2 {[%clk 0:00:32.2]} 24... Qxa2 {[%clk 0:01:01.7]} 25. h3
{[%clk 0:00:31.8]} 25... e5 {[%clk 0:00:55]} 26. Qc7 {[%clk 0:00:22.9]} 26...
Qa1+ {[%clk 0:00:44.5]} 27. Kh2 {[%clk 0:00:21.1]} 27... Qxd4 {[%clk 0:00:45.2]}
28. Qxd8+ {[%clk 0:00:20.9]} 28... Kg7 {[%clk 0:00:45.9]} 0-1

[Event "Early-Titled-Tuesday-Blitz-January-30-2024"]
[Site "Chess.com"]
[Date "2024.01.30"]
[Round "1"]
[White "SaiAgni_98"]
[Black "Makswolf200817"]
[Result "0-1"]
[WhiteElo "2347"]
[BlackElo "2692"]
[TimeControl "180+1"]
[EndTime "8:06:18 PST"]
[Termination "Makswolf200817 won by checkmate"]

1. e4 {[%clk 0:03:00.9]} 1... c5 {[%clk 0:02:59.4]} 2. Nf3 {[%clk 0:03:00.8]}
2... d6 {[%clk 0:03:00]} 3. Bb5+ {[%clk 0:03:00.5]} 3... Nd7 {[%clk 0:02:59.8]}
4. c4 {[%clk 0:02:59.7]} 4... a6 {[%clk 0:02:58.9]} 5. Ba4 {[%clk 0:02:59.8]}
5... Nf6 {[%clk 0:02:58.2]} 6. d3 {[%clk 0:02:59.5]} 6... g6 {[%clk 0:02:56.7]}
7. Nc3 {[%clk 0:02:59.7]} 7... Bg7 {[%clk 0:02:57]} 8. O-O {[%clk 0:03:00.3]}
8... O-O {[%clk 0:02:57.3]} 9. h3 {[%clk 0:03:00.6]} 9... Ne5 {[%clk 0:02:52.5]}
10. Be3 {[%clk 0:02:57.7]} 10... Nfd7 {[%clk 0:02:43.1]} 11. Bc2 {[%clk
0:02:56.4]} 11... e6 {[%clk 0:02:41.1]} 12. Nh2 {[%clk 0:02:54.1]} 12... Nc6
{[%clk 0:02:39.9]} 13. Qd2 {[%clk 0:02:52.2]} 13... Nd4 {[%clk 0:02:37.6]} 14.
Bd1 {[%clk 0:02:48.9]} 14... Rb8 {[%clk 0:02:30]} 15. Bh6 {[%clk 0:02:48]} 15...
Bxh6 {[%clk 0:02:29.2]} 16. Qxh6 {[%clk 0:02:47.8]} 16... b5 {[%clk 0:02:29.7]}
17. b3 {[%clk 0:02:47]} 17... Ne5 {[%clk 0:02:22.9]} 18. Qe3 {[%clk 0:02:42.2]}
18... Nec6 {[%clk 0:02:18.9]} 19. f4 {[%clk 0:02:34.4]} 19... f6 {[%clk
0:02:17]} 20. Bg4 {[%clk 0:02:31.4]} 20... Nc2 {[%clk 0:02:13.8]} 21. Qg3 {[%clk
0:02:30.4]} 21... Nxa1 {[%clk 0:02:13.2]} 22. Rxa1 {[%clk 0:02:31.2]} 22... Nd4
{[%clk 0:02:11.4]} 23. h4 {[%clk 0:02:29.3]} 23... Kh8 {[%clk 0:02:03.4]} 24.
Re1 {[%clk 0:02:21.5]} 24... Qa5 {[%clk 0:01:59.6]} 25. Rc1 {[%clk 0:02:09]}
25... f5 {[%clk 0:01:50.4]} 26. Bd1 {[%clk 0:02:01.3]} 26... Bb7 {[%clk
0:01:46.6]} 27. Nf3 {[%clk 0:01:42.6]} 27... bxc4 {[%clk 0:01:32.8]} 28. dxc4
{[%clk 0:01:33.9]} 28... fxe4 {[%clk 0:01:30.7]} 29. Ng5 {[%clk 0:01:30]} 29...
Nf5 {[%clk 0:01:16]} 30. Qh3 {[%clk 0:01:16.6]} 30... h6 {[%clk 0:01:15.2]} 31.
Nxe6 {[%clk 0:00:57.3]} 31... Rfe8 {[%clk 0:01:14.1]} 32. g4 {[%clk 0:00:56.6]}
32... Rxe6 {[%clk 0:01:13.6]} 33. gxf5 {[%clk 0:00:56.7]} 33... gxf5 {[%clk
0:01:14.3]} 34. Qxf5 {[%clk 0:00:56.6]} 34... Rg8+ {[%clk 0:01:14.9]} 35. Kh2
{[%clk 0:00:50.1]} 35... Qd8 {[%clk 0:01:11.9]} 36. Qxe6 {[%clk 0:00:32]} 36...
Qxh4+ {[%clk 0:01:09.1]} 37. Qh3 {[%clk 0:00:32.7]} 37... Qf2+ {[%clk
0:01:09.8]} 38. Kh1 {[%clk 0:00:32.6]} 38... Qg1# {[%clk 0:01:07.2]} 0-1

[Event "Early-Titled-Tuesday-Blitz-January-30-2024"]
[Site "Chess.com"]
[Date "2024.01.30"]
[Round "1"]
[White "Ati1517"]
[Black "Karttunen"]
[Result "0-1"]
[WhiteElo "2245"]
[BlackElo "2605"]
[TimeControl "180+1"]
[EndTime "8:06:19 PST"]
[Termination "Karttunen won by resignation"]

1. e4 {[%clk 0:03:00.9]} 1... c5 {[%clk 0:02:59.5]} 2. Nf3 {[%clk 0:03:01.1]}
2... d6 {[%clk 0:02:59.7]} 3. d4 {[%clk 0:03:01.5]} 3... cxd4 {[%clk 0:03:00.6]}
4. Nxd4 {[%clk 0:03:01.6]} 4... Nf6 {[%clk 0:03:01]} 5. Nc3 {[%clk 0:03:01.6]}
5... a6 {[%clk 0:03:01.5]} 6. Bc4 {[%clk 0:02:57.6]} 6... e6 {[%clk 0:02:55.9]}
7. O-O {[%clk 0:02:57.2]} 7... b5 {[%clk 0:02:54.3]} 8. Bb3 {[%clk 0:02:57.1]}
8... Be7 {[%clk 0:02:54.1]} 9. Qf3 {[%clk 0:02:52.1]} 9... Qc7 {[%clk 0:02:52]}
10. Qg3 {[%clk 0:02:50.2]} 10... Rg8 {[%clk 0:02:51.9]} 11. Be3 {[%clk 0:02:46]}
11... g5 {[%clk 0:02:45.5]} 12. Rad1 {[%clk 0:02:39.3]} 12... Bd7 {[%clk
0:02:16]} 13. Rfe1 {[%clk 0:02:35.2]} 13... b4 {[%clk 0:01:53.8]} 14. Na4 {[%clk
0:02:29.8]} 14... Nxe4 {[%clk 0:01:19.6]} 15. Qf3 {[%clk 0:02:27.8]} 15... d5
{[%clk 0:01:20.1]} 16. c4 {[%clk 0:02:13.4]} 16... bxc3 {[%clk 0:01:19.3]} 17.
Nxc3 {[%clk 0:02:12]} 17... Nxc3 {[%clk 0:01:15.3]} 18. bxc3 {[%clk 0:02:11.3]}
18... Nc6 {[%clk 0:01:14.1]} 19. Nxc6 {[%clk 0:02:06.9]} 19... Bxc6 {[%clk
0:01:14]} 20. Bd4 {[%clk 0:02:07]} 20... g4 {[%clk 0:01:11.3]} 21. Qd3 {[%clk
0:02:05.4]} 21... Rg6 {[%clk 0:01:10.8]} 22. Be5 {[%clk 0:01:52.7]} 22... Qb7
{[%clk 0:01:10.3]} 23. Bd4 {[%clk 0:01:39]} 23... Kf8 {[%clk 0:01:08]} 24. Re5
{[%clk 0:01:16.1]} 24... Kg8 {[%clk 0:01:06.3]} 25. Bc2 {[%clk 0:01:08.9]} 25...
Bb5 {[%clk 0:01:02.5]} 26. Qd2 {[%clk 0:01:04.6]} 26... f5 {[%clk 0:01:00.5]}
27. a4 {[%clk 0:00:56.8]} 27... Bg5 {[%clk 0:00:56.7]} 28. Qe1 {[%clk
0:00:54.2]} 28... Bd7 {[%clk 0:00:56.5]} 29. Rb1 {[%clk 0:00:53.5]} 29... Qc7
{[%clk 0:00:53.1]} 30. Bb6 {[%clk 0:00:38.5]} 30... Qd6 {[%clk 0:00:49.8]} 31.
Bd4 {[%clk 0:00:35.7]} 31... Bf4 {[%clk 0:00:49.2]} 32. Re2 {[%clk 0:00:34.4]}
32... Bxh2+ {[%clk 0:00:48.4]} 33. Kh1 {[%clk 0:00:34.9]} 33... Rh6 {[%clk
0:00:46.8]} 34. Be3 {[%clk 0:00:34.4]} 34... Bg1+ {[%clk 0:00:44.9]} 0-1

[Event "Early-Titled-Tuesday-Blitz-January-30-2024"]
[Site "Chess.com"]
[Date "2024.01.30"]
[Round "1"]
[White "zubridis"]
[Black "maurovargas01"]
[Result "1-0"]
[WhiteElo "2552"]
[BlackElo "1837"]
[TimeControl "180+1"]
[EndTime "8:06:20 PST"]
[Termination "zubridis won on time"]

1. e4 {[%clk 0:03:00]} 1... c5 {[%clk 0:02:53.8]} 2. Nf3 {[%clk 0:02:58.8]} 2...
g6 {[%clk 0:02:50.5]} 3. c3 {[%clk 0:02:57.4]} 3... Bg7 {[%clk 0:02:46]} 4. d4
{[%clk 0:02:56.8]} 4... cxd4 {[%clk 0:02:43.4]} 5. cxd4 {[%clk 0:02:57.7]} 5...
Nc6 {[%clk 0:02:41.9]} 6. d5 {[%clk 0:02:55.8]} 6... Ne5 {[%clk 0:02:35.1]} 7.
Nxe5 {[%clk 0:02:55.5]} 7... Bxe5 {[%clk 0:02:32.1]} 8. Nc3 {[%clk 0:02:55.2]}
8... d6 {[%clk 0:02:27.6]} 9. Be2 {[%clk 0:02:37.9]} 9... Bd7 {[%clk 0:02:26.6]}
10. O-O {[%clk 0:02:37.5]} 10... Bg7 {[%clk 0:02:18.5]} 11. Be3 {[%clk
0:02:34.9]} 11... Nf6 {[%clk 0:02:15]} 12. Qb3 {[%clk 0:02:35.1]} 12... b6
{[%clk 0:02:00.6]} 13. Rfc1 {[%clk 0:02:29.2]} 13... O-O {[%clk 0:01:59.7]} 14.
f3 {[%clk 0:02:29.1]} 14... Rb8 {[%clk 0:01:00.5]} 15. Nb5 {[%clk 0:02:21.8]}
15... a6 {[%clk 0:00:48.7]} 16. Nd4 {[%clk 0:02:21]} 16... b5 {[%clk 0:00:44.9]}
17. Nc6 {[%clk 0:02:19.5]} 17... Bxc6 {[%clk 0:00:42.9]} 18. Rxc6 {[%clk
0:02:19.1]} 18... Ra8 {[%clk 0:00:36.3]} 19. Rac1 {[%clk 0:02:15.6]} 19... Nd7
{[%clk 0:00:18.9]} 20. Qa3 {[%clk 0:01:55.3]} 20... Ne5 {[%clk 0:00:16.7]} 21.
Rxa6 {[%clk 0:01:53.2]} 21... Rc8 {[%clk 0:00:08.8]} 22. b3 {[%clk 0:01:38]}
22... Rxc1+ {[%clk 0:00:07.2]} 23. Qxc1 {[%clk 0:01:37.4]} 23... Qb8 {[%clk
0:00:04.7]} 24. Qd2 {[%clk 0:01:13]} 24... Rc8 {[%clk 0:00:04.8]} 25. h3 {[%clk
0:01:11.5]} 25... Qb7 {[%clk 0:00:04.7]} 26. Ra7 {[%clk 0:01:11]} 1-0